fUST/lending_fUST_20240501
["ID","MTS","AMOUNT","RATE_DAILY","PERIOD"]
[324988029,1714497045019,-500.0,0.00032054,2]
[324988030,1714497045029,-500.0,0.00032054,2]
[324988031,1714497045039,-500.0,0.00032054,2]
[324988032,1714497045049,-717.97,0.00032054,2]
[324988033,1714497045059,-864.8,0.00032054,2]
[324988034,1714497045073,-3288.08,0.00032054,2]
[324988035,1714497045083,-500.0,0.00032054,2]
[324988036,1714497045092,-725.08,0.00032054,2]
[324988037,1714497045101,-500.0,0.00032054,2]
[324988038,1714497045110,-847.58,0.00032054,2]
[324988039,1714497045119,-500.0,0.00032054,2]
[324988040,1714497045129,-783.35,0.00032054,2]
[324988041,1714497045138,-182.13363266,0.00032054,2]
[324988042,1714497045147,-500.0,0.00032054,2]
[324988043,1714497045157,-185.3645537,0.00032054,2]
[324988044,1714497045167,-500.0,0.00032054,2]
[324988045,1714497045176,-500.0,0.00032054,2]
[324988046,1714497045186,-500.0,0.00032054,2]
[324988047,1714497045195,-790.97,0.00032054,2]
[324988048,1714497045206,-500.0,0.00032054,2]
[324988049,1714497045215,-1054.28,0.00032054,2]
[324988050,1714497045224,-500.0,0.00032054,2]
[324988051,1714497045233,-500.0,0.00032054,2]
[324988052,1714497045242,-1003.16,0.00032054,2]
[324988053,1714497045252,-513.33959173,0.00032054,2]
[324988054,1714497045262,-500.0,0.00032054,2]
[324988055,1714497045271,-500.0,0.00032054,2]
[324988056,1714497045281,-500.0,0.00032054,2]
[324988057,1714497045290,-653.99,0.00032054,2]
[324988058,1714497045300,-500.0,0.00032054,2]
[324988059,1714497045310,-500.0,0.00032054,2]
[324988060,1714497045319,-522.26,0.00032054,2]
[324988061,1714497045328,-500.0,0.00032054,2]
[324988062,1714497045338,-345.24510885,0.00032054,2]
[324988063,1714497045347,-812.74,0.00032054,2]
[324988064,1714497045357,-500.0,0.00032054,2]
[324988065,1714497045366,-500.0,0.00032054,2]
[324988066,1714497045376,-500.0,0.00032054,2]
[324988067,1714497045386,-500.0,0.00032054,2]
[324988068,1714497045395,-500.0,0.00032054,2]
[324988069,1714497045405,-500.0,0.00032054,2]
[324988070,1714497045414,-500.0,0.00032054,2]
[324988071,1714497045423,-500.0,0.00032054,2]
[324988072,1714497045433,-580.59,0.00032054,2]
[324988073,1714497045442,-500.0,0.00032054,2]
[324988074,1714497045452,-500.0,0.00032054,2]
[324988075,1714497045464,-500.0,0.00032054,2]
[324988076,1714497045474,-500.0,0.00032054,2]
[324988077,1714497045483,-500.0,0.00032054,2]
[324988078,1714497045493,-500.0,0.00032054,2]
[324988079,1714497045502,-500.0,0.00032054,2]
[324988080,1714497045512,-3166.79,0.00032054,2]
[324988081,1714497045521,-500.0,0.00032054,2]
[324988082,1714497045530,-500.0,0.00032054,2]
[324988083,1714497045540,-500.0,0.00032054,2]
[324988084,1714497045549,-500.0,0.00032054,2]
[324988085,1714497045558,-500.0,0.00032054,2]
[324988086,1714497045567,-500.0,0.00032054,2]
[324988087,1714497045577,-500.0,0.00032054,2]
[324988088,1714497045586,-734.03,0.00032054,2]
[324988089,1714497045596,-476.00827288,0.00032054,2]
[324988090,1714497045605,-746.7,0.00032054,2]
[324988091,1714497045614,-593.03,0.00032054,2]
[324988092,1714497045623,-525.99263264,0.00032054,2]
[324988093,1714497045633,-511.95,0.00032054,2]
[324988094,1714497045642,-500.0,0.00032054,2]
[324988095,1714497045651,-500.0,0.00032054,2]
[324988096,1714497045660,-658.15,0.00032054,2]
[324988097,1714497045670,-500.0,0.00032054,2]
[324988098,1714497045679,-500.0,0.00032054,2]
[324988099,1714497045688,-500.0,0.00032054,2]
[324988100,1714497045698,-500.0,0.00032054,2]
[324988101,1714497045708,-500.0,0.00032054,2]
[324988102,1714497045717,-1533.36,0.00032054,2]
[324988103,1714497045727,-394.46612082,0.00032054,2]
[324988104,1714497045736,-500.0,0.00032054,2]
[324988105,1714497045745,-500.0,0.00032054,2]
[324988106,1714497045755,-278.18314733,0.00032054,2]
[324988107,1714497045769,-821.39,0.00032054,2]
[324988108,1714497045779,-791.47,0.00032054,2]
[324988109,1714497045788,-500.0,0.00032054,2]
[324988110,1714497045798,-500.0,0.00032054,2]
[324988111,1714497045808,-500.0,0.00032054,2]
[324988112,1714497045817,-500.0,0.00032054,2]
[324988113,1714497045827,-500.0,0.00032054,2]
[324988114,1714497045836,-1645.27,0.00032054,2]
[324988115,1714497045849,-500.0,0.00032054,2]
[324988116,1714497045858,-500.0,0.00032054,2]
[324988117,1714497045867,-500.0,0.00032054,2]
[324988118,1714497045877,-500.0,0.00032054,2]
[324988119,1714497045886,-500.0,0.00032054,2]
[324988120,1714497045895,-360.43850052,0.00032054,2]
[324988121,1714497045904,-500.0,0.00032054,2]
[324988122,1714497045913,-540.14,0.00032054,2]
[324988123,1714497045922,-1050.9,0.000321,7]
[324988124,1714497045931,-1000.0,0.000322,10]
[324988125,1714497045941,-2101.68210532,0.00032328,2]
[324988126,1714497045950,-1452.62675219,0.00032328,4]
[324988127,1714497045960,-14239.91354927,0.00032328,7]
[324988128,1714497045969,-2205.14896712,0.00032328,4]
[324988129,1714497045979,-191.54103763,0.00032328,4]
[324988130,1714497045989,-280.68822047,0.00032328,4]
[324988131,1714497045998,-154.81421984,0.00032328,4]
[324988132,1714497046007,-3953.30888415,0.00032328,4]
[324988133,1714497046017,-241.60682646,0.00032328,2]
[324988134,1714497046027,-500.0,0.00032328,2]
[324988135,1714497046036,-500.0,0.00032328,2]
[324988136,1714497046046,-1100.69,0.00032328,2]
[324988137,1714497046055,-613.95,0.00032328,2]
[324988138,1714497046065,-500.0,0.00032328,2]
[324988139,1714497046074,-500.0,0.00032328,2]
[324988140,1714497046083,-738.35,0.00032328,2]
[324988141,1714497046093,-500.0,0.00032328,2]
[324988142,1714497046102,-500.0,0.00032328,2]
[324988143,1714497046111,-500.0,0.00032328,2]
[324988144,1714497046120,-500.0,0.00032328,2]
[324988145,1714497046130,-500.0,0.00032328,2]
[324988146,1714497046139,-500.0,0.00032328,2]
[324988147,1714497046148,-500.0,0.00032328,2]
[324988148,1714497046158,-500.0,0.00032328,2]
[324988149,1714497046168,-500.0,0.00032328,2]
[324988150,1714497046177,-500.0,0.00032328,2]
[324988151,1714497046186,-500.0,0.00032328,2]
[324988152,1714497046195,-500.0,0.00032328,2]
[324988153,1714497046204,-500.0,0.00032328,2]
[324988154,1714497046215,-500.0,0.00032328,2]
[324988155,1714497046224,-500.0,0.00032328,2]
[324988156,1714497046233,-500.0,0.00032328,2]
[324988157,1714497046242,-500.0,0.00032328,2]
[324988158,1714497046251,-500.0,0.00032328,2]
[324988159,1714497046261,-534.10498441,0.00032328,2]
[324988160,1714497046270,-1270.77,0.00032328,2]
[324988161,1714497046280,-500.0,0.00032328,2]
[324988162,1714497046289,-500.0,0.00032328,2]
[324988163,1714497046298,-500.0,0.00032328,2]
[324988164,1714497046308,-500.0,0.00032328,30]
[324988165,1714497046316,-500.0,0.00032328,2]
[324988166,1714497046326,-502.00246879,0.00032328,2]
[324988167,1714497046335,-683.37,0.00032328,2]
[324988168,1714497046344,-500.0,0.00032328,2]
[324988169,1714497046354,-500.0,0.00032328,2]
[324988170,1714497046363,-564.45,0.00032328,2]
[324988171,1714497046372,-500.0,0.00032328,2]
[324988172,1714497046382,-500.0,0.00032328,2]
[324988173,1714497046391,-206.01608299,0.00032328,2]
[324988174,1714497046400,-575.92,0.00032328,2]
[324988175,1714497046408,-500.0,0.00032328,2]
[324988176,1714497046417,-500.0,0.00032328,2]
[324988177,1714497046426,-529.28,0.00032328,2]
[324988178,1714497046435,-500.0,0.00032328,2]
[324988179,1714497046444,-500.0,0.00032328,2]
[324988180,1714497046453,-500.0,0.00032328,2]
[324988181,1714497046463,-500.0,0.00032328,2]
[324988182,1714497046472,-581.69,0.00032328,2]
[324988183,1714497046481,-500.0,0.00032328,2]
[324988184,1714497046490,-172.68244233,0.00032328,2]
[324988185,1714497046499,-500.0,0.00032328,2]
[324988186,1714497046508,-500.0,0.00032328,2]
[324988187,1714497046516,-500.0,0.00032328,2]
[324988188,1714497046525,-529.36,0.00032328,2]
[324988189,1714497046534,-500.0,0.00032328,2]
[324988190,1714497046543,-300.0,0.00032328,2]
[324988191,1714497046552,-679.85,0.00032328,2]
[324988192,1714497046561,-500.0,0.00032328,2]
[324988193,1714497046570,-827.69,0.00032328,2]
[324988194,1714497046579,-500.0,0.00032328,2]
[324988195,1714497046588,-500.0,0.00032328,2]
[324988196,1714497046597,-500.0,0.00032328,2]
[324988197,1714497046606,-593.73,0.00032328,2]
[324988198,1714497046615,-555.23,0.00032328,2]
[324988199,1714497046624,-500.0,0.00032328,2]
[324988200,1714497046633,-500.0,0.00032328,2]
[324988201,1714497046643,-500.0,0.00032328,2]
[324988202,1714497046652,-500.0,0.00032328,2]
[324988203,1714497046661,-500.0,0.00032328,2]
[324988204,1714497046670,-501.9525827,0.00032328,2]
[324988205,1714497046679,-497.89974434,0.00032328,2]
[324988206,1714497046688,-542.68,0.00032328,2]
[324988207,1714497046697,-500.0,0.00032328,2]
[324988208,1714497046708,-845.35,0.00032328,2]
[324988209,1714497046717,-500.0,0.00032328,2]
[324988210,1714497046726,-500.95072127,0.00032328,2]
[324988211,1714497046736,-775.06,0.00032328,2]
[324988212,1714497046746,-500.0,0.00032328,2]
[324988213,1714497046758,-500.0,0.00032328,2]
[324988214,1714497046767,-500.0,0.00032328,2]
[324988215,1714497046776,-584.12,0.00032328,2]
[324988216,1714497046786,-500.0,0.00032328,2]
[324988217,1714497046796,-500.0,0.00032328,2]
[324988218,1714497046806,-500.0,0.00032328,2]
[324988219,1714497046815,-1001.55,0.00032328,2]
[324988220,1714497046825,-500.0,0.00032328,2]
[324988221,1714497046835,-780.34,0.00032328,2]
[324988222,1714497046846,-500.0,0.00032328,2]
[324988223,1714497046856,-500.0,0.00032328,2]
[324988224,1714497046866,-500.0,0.00032328,2]
[324988225,1714497046875,-500.0,0.00032328,2]
[324988226,1714497046885,-500.0,0.00032328,2]
[324988227,1714497046894,-500.0,0.00032328,2]
[324988228,1714497046903,-500.0,0.00032328,2]
[324988229,1714497046912,-535.25,0.00032328,2]
[324988230,1714497046922,-500.0,0.00032328,2]
[324988231,1714497046931,-500.0,0.00032328,2]
[324988232,1714497046940,-500.0,0.00032328,2]
[324988233,1714497046950,-500.0,0.00032328,2]
[324988234,1714497046961,-500.0,0.00032328,2]
[324988235,1714497046970,-500.0,0.00032328,2]
[324988236,1714497046979,-500.0,0.00032328,2]
[324988237,1714497046988,-500.0,0.00032328,2]
[324988238,1714497046997,-201.26376216,0.00032328,2]
[324988239,1714497047006,-500.0,0.00032328,2]
[324988240,1714497047016,-500.0,0.00032328,2]
[324988241,1714497047026,-500.0,0.00032328,2]
[324988242,1714497047035,-500.0,0.00032328,2]
[324988243,1714497047045,-559.27,0.00032328,2]
[324988244,1714497047054,-500.0,0.00032328,2]
[324988245,1714497047064,-500.0,0.00032328,2]
[324988246,1714497047073,-500.0,0.00032328,2]
[324988247,1714497047083,-500.0,0.00032328,2]
[324988248,1714497047092,-554.81,0.00032328,2]
[324988249,1714497047102,-389.48625558,0.00032328,2]
[324988250,1714497047111,-503.26541033,0.00032328,2]
[324988251,1714497047121,-500.0,0.00032328,2]
[324988252,1714497047132,-500.0,0.00032328,2]
[324988253,1714497047142,-736.04,0.00032328,2]
[324988254,1714497047153,-584.49,0.00032328,2]
[324988255,1714497047163,-500.0,0.00032328,2]
[324988256,1714497047173,-500.0,0.00032328,2]
[324988257,1714497047183,-500.0,0.00032328,2]
[324988258,1714497047193,-500.0,0.00032328,2]
[324988259,1714497047203,-500.0,0.00032328,2]
[324988260,1714497047213,-717.97,0.00032328,2]
[324988261,1714497047222,-864.8,0.00032328,2]
[324988262,1714497047233,-3288.08,0.00032328,2]
[324988263,1714497047242,-227.7699957,0.00032328,2]
[324988264,1714497047251,-725.08,0.00032328,2]
[324988265,1714497047260,-500.0,0.00032328,2]
[324988266,1714497047270,-847.58,0.00032328,2]
[324988267,1714497047279,-500.0,0.00032328,2]
[324988268,1714497047288,-783.35,0.00032328,2]
[324988269,1714497047297,-500.0,0.00032328,2]
[324988270,1714497047306,-500.0,0.00032328,2]
[324988271,1714497047315,-500.0,0.00032328,2]
[324988272,1714497047324,-500.0,0.00032328,2]
[324988273,1714497047333,-790.97,0.00032328,2]
[324988274,1714497047342,-500.0,0.00032328,2]
[324988275,1714497047473,-1054.28,0.00032328,2]
[324988276,1714497047482,-500.0,0.00032328,2]
[324988277,1714497047492,-500.0,0.00032328,2]
[324988278,1714497047501,-1003.16,0.00032328,2]
[324988279,1714497047510,-500.0,0.00032328,2]
[324988280,1714497047519,-500.0,0.00032328,2]
[324988281,1714497047528,-500.0,0.00032328,2]
[324988282,1714497047537,-653.99,0.00032328,2]
[324988283,1714497047546,-500.0,0.00032328,2]
[324988284,1714497047555,-500.0,0.00032328,2]
[324988285,1714497047564,-522.26,0.00032328,2]
[324988286,1714497047574,-500.0,0.00032328,2]
[324988287,1714497047583,-812.74,0.00032328,2]
[324988288,1714497047592,-500.0,0.00032328,2]
[324988289,1714497047601,-500.0,0.00032328,2]
[324988290,1714497047610,-500.0,0.00032328,2]
[324988291,1714497047619,-500.0,0.00032328,2]
[324988292,1714497047628,-500.0,0.00032328,2]
[324988293,1714497047638,-500.0,0.00032328,2]
[324988294,1714497047647,-500.0,0.00032328,2]
[324988295,1714497047656,-500.0,0.00032328,2]
[324988296,1714497047665,-580.59,0.00032328,2]
[324988297,1714497047674,-500.0,0.00032328,2]
[324988298,1714497047683,-500.0,0.00032328,2]
[324988299,1714497047692,-500.0,0.00032328,2]
[324988300,1714497047701,-500.0,0.00032328,2]
[324988301,1714497047711,-500.0,0.00032328,2]
[324988302,1714497047720,-500.0,0.00032328,2]
[324988303,1714497047729,-500.0,0.00032328,2]
[324988304,1714497047738,-3166.79,0.00032328,2]
[324988305,1714497047747,-500.0,0.00032328,2]
[324988306,1714497047757,-500.0,0.00032328,2]
[324988307,1714497047770,-500.0,0.00032328,2]
[324988308,1714497047779,-500.0,0.00032328,2]
[324988309,1714497047789,-500.0,0.00032328,2]
[324988310,1714497047798,-500.0,0.00032328,2]
[324988311,1714497047809,-500.0,0.00032328,2]
[324988312,1714497047818,-734.03,0.00032328,2]
[324988313,1714497047828,-746.7,0.00032328,2]
[324988314,1714497047838,-593.03,0.00032328,2]
[324988315,1714497047847,-511.95,0.00032328,2]
[324988316,1714497047856,-500.0,0.00032328,2]
[324988317,1714497047865,-500.0,0.00032328,2]
[324988318,1714497047875,-658.15,0.00032328,2]
[324988319,1714497047884,-500.0,0.00032328,2]
[324988320,1714497047893,-500.0,0.00032328,2]
[324988321,1714497047902,-538.18685467,0.00032328,2]
[324988322,1714497047911,-500.0,0.00032328,2]
[324988323,1714497047920,-500.0,0.00032328,2]
[324988324,1714497047929,-1533.36,0.00032328,2]
[324988325,1714497047939,-500.0,0.00032328,2]
[324988326,1714497047947,-500.0,0.00032328,2]
[324988327,1714497047958,-821.39,0.00032328,2]
[324988328,1714497047967,-791.47,0.00032328,2]
[324988329,1714497047976,-500.0,0.00032328,2]
[324988330,1714497047985,-501.45490789,0.00032328,2]
[324988331,1714497047995,-634.81599493,0.00032328,2]
[324988332,1714497048004,-500.0,0.00032328,2]
[324988333,1714497048014,-500.0,0.00032328,2]
[324988334,1714497048023,-1645.27,0.00032328,2]
[324988335,1714497048032,-500.0,0.00032328,2]
[324988336,1714497048041,-500.0,0.00032328,2]
[324988337,1714497048050,-500.0,0.00032328,2]
[324988338,1714497048059,-500.0,0.00032328,2]
[324988339,1714497048068,-500.0,0.00032328,2]
[324988340,1714497048077,-500.0,0.00032328,2]
[324988341,1714497048086,-540.14,0.00032328,2]
[324988342,1714497048095,-588.0,0.000324,2]
[324988343,1714497048104,-163.0,0.000326,19]
[324988344,1714497048114,-500.0,0.00032602,2]
[324988345,1714497048123,-500.0,0.00032602,2]
[324988346,1714497048132,-1100.69,0.00032602,2]
[324988347,1714497048141,-613.95,0.00032602,2]
[324988348,1714497048150,-500.0,0.00032602,2]
[324988349,1714497048159,-500.0,0.00032602,2]
[324988350,1714497048168,-738.35,0.00032602,2]
[324988351,1714497048177,-500.0,0.00032602,2]
[324988352,1714497048187,-646.58489573,0.00032602,2]
[324988353,1714497048196,-500.0,0.00032602,2]
[324988354,1714497048205,-500.0,0.00032602,2]
[324988355,1714497048216,-500.0,0.00032602,2]
[324988356,1714497048226,-500.0,0.00032602,2]
[324988357,1714497048235,-500.0,0.00032602,2]
[324988358,1714497048245,-500.0,0.00032602,2]
[324988359,1714497048254,-500.0,0.00032602,2]
[324988360,1714497048263,-500.0,0.00032602,2]
[324988361,1714497048272,-500.0,0.00032602,2]
[324988362,1714497048281,-500.0,0.00032602,2]
[324988363,1714497048291,-500.0,0.00032602,2]
[324988364,1714497048300,-500.0,0.00032602,2]
[324988365,1714497048309,-500.0,0.00032602,2]
[324988366,1714497048319,-500.0,0.00032602,2]
[324988367,1714497048328,-500.0,0.00032602,2]
[324988368,1714497048338,-500.0,0.00032602,2]
[324988369,1714497048347,-500.0,0.00032602,2]
[324988370,1714497048356,-1270.77,0.00032602,2]
[324988371,1714497048365,-500.0,0.00032602,2]
[324988372,1714497048374,-500.0,0.00032602,2]
[324988373,1714497048383,-500.0,0.00032602,2]
[324988374,1714497048392,-500.0,0.00032602,30]
[324988375,1714497048401,-500.0,0.00032602,2]
[324988376,1714497048410,-683.37,0.00032602,2]
[324988377,1714497048419,-500.0,0.00032602,2]
[324988378,1714497048428,-500.0,0.00032602,2]
[324988379,1714497048437,-564.45,0.00032602,2]
[324988380,1714497048446,-500.0,0.00032602,2]
[324988381,1714497048455,-500.0,0.00032602,2]
[324988382,1714497048465,-575.92,0.00032602,2]
[324988383,1714497048474,-500.0,0.00032602,2]
[324988384,1714497048483,-500.0,0.00032602,2]
[324988385,1714497048492,-529.28,0.00032602,2]
[324988386,1714497048501,-500.0,0.00032602,2]
[324988387,1714497048511,-500.0,0.00032602,2]
[324988388,1714497048520,-500.0,0.00032602,2]
[324988389,1714497048529,-500.0,0.00032602,2]
[324988390,1714497048539,-581.69,0.00032602,2]
[324988391,1714497048548,-500.0,0.00032602,2]
[324988392,1714497048557,-500.0,0.00032602,2]
[324988393,1714497048566,-500.0,0.00032602,2]
[324988394,1714497048575,-500.0,0.00032602,2]
[324988395,1714497048585,-529.36,0.00032602,2]
[324988396,1714497048594,-500.0,0.00032602,2]
[324988397,1714497048603,-300.0,0.00032602,2]
[324988398,1714497048612,-679.85,0.00032602,2]
[324988399,1714497048622,-211.28502657,0.00032602,2]
[324988459,1714497049179,-288.71497343,0.00032602,2]
[324988461,1714497049187,-827.69,0.00032602,2]
[324988463,1714497049197,-33.71202657,0.00032602,2]
[324988466,1714497049218,-466.28797343,0.00032602,2]
[324988468,1714497049227,-500.0,0.00032602,2]
[324988470,1714497049236,-500.0,0.00032602,2]
[324988472,1714497049245,-427.39368733,0.00032602,2]
[324988486,1714497049365,-166.33631267,0.00032602,2]
[324988488,1714497049374,-555.23,0.00032602,2]
[324988490,1714497049387,-500.0,0.00032602,2]
[324988492,1714497049398,-500.0,0.00032602,2]
[324988494,1714497049407,-151.0,0.00032602,2]
[324988496,1714497049416,-500.0,0.00032602,2]
[324988498,1714497049425,-500.0,0.00032602,2]
[324988500,1714497049434,-500.0,0.00032602,2]
[324988502,1714497049443,-542.68,0.00032602,2]
[324988504,1714497049452,-323.14432132,0.00032602,2]
[324988506,1714497049461,-845.35,0.00032602,2]
[324988508,1714497049471,-500.0,0.00032602,2]
[324988510,1714497049480,-775.06,0.00032602,2]
[324988512,1714497049489,-37.73224302,0.00032602,2]
[324988522,1714497405775,1313.2113406,0.0001,2]
[324988523,1714497407942,550.09434991,9.999e-05,2]
[324988526,1714497457400,522.12800672,9.999e-05,2]
[324988528,1714497470990,285.07224206,9.999e-05,2]
[324988529,1714497487120,285.07224206,9.999e-05,2]
[324988530,1714497501014,241.9304532,9.999e-05,2]
[324988534,1714497640070,1621.94326618,9.999e-05,2]
[324988535,1714497669077,475.26109045,9.999e-05,2]
[324988536,1714497728950,154.78330338,9.999e-05,2]
[324988579,1714497974864,1313.2113406,0.0001,2]
[324988581,1714498002792,164.09674352,9.999e-05,2]
[324988582,1714498019422,155.08505684,0.0001,2]
[324988583,1714498027134,-768.69660055,0.00015436,2]
[324988584,1714498027156,-514.30635662,0.00016295,2]
[324988585,1714498027177,-154.76784823,0.00016296,2]
[324988586,1714498027197,-1262.6177395,0.00016486,2]
[324988587,1714498027217,-272.83575254,0.00017054,2]
[324988588,1714498027238,-308.90365855,0.00017055,2]
[324988589,1714498027258,-164.01055654,0.00017151,2]
[324988590,1714498027278,-1028.16418234,0.00017152,2]
[324988591,1714498027297,-526.73680751,0.00017152,2]
[324988592,1714498027317,-59218.78804834,0.00017152,2]
[324988593,1714498027337,-308.72716186,0.00017152,2]
[324988594,1714498027356,-18000.02949539,0.00017153,2]
[324988595,1714498027376,-24900.0,0.00017157,2]
[324988596,1714498027396,-166.666666,0.00017745,2]
[324988597,1714498027415,-1272.8490852,0.00017888,2]
[324988598,1714498027434,-603.84859883,0.000185,2]
[324988599,1714498027452,-784.43135358,0.000189,2]
[324988600,1714498027471,-422.70056757,0.00019178,2]
[324988601,1714498027490,-276.79028923,0.00019178,2]
[324988602,1714498027511,-329.70890835,0.00019178,2]
[324988603,1714498027529,-160.57566,0.00019178,2]
[324988604,1714498027550,-210.56024698,0.00019462,2]
[324988605,1714498027571,-154.89155426,0.00019464,2]
[324988606,1714498027591,-474.97244981,0.00019466,2]
[324988607,1714498027611,-1620.89516318,0.00019467,2]
[324988608,1714498027631,-155.06896454,0.0001947,2]
[324988609,1714498027650,-384.39093347,0.00019472,2]
[324988610,1714498027669,-540.4697437,0.00019475,2]
[324988611,1714498027689,-472.01022916,0.00019475,2]
[324988612,1714498027708,-170.86156021,0.00019475,2]
[324988613,1714498027728,-671.02123624,0.00019475,2]
[324988614,1714498027747,-288.69439008,0.00019476,2]
[324988615,1714498027766,-170.38964357,0.00019476,2]
[324988616,1714498027790,-459.67881521,0.00019476,2]
[324988617,1714498027809,-2000.0,0.000199,2]
[324988618,1714498027829,-329.99389325,0.0002,2]
[324988619,1714498027851,-67426.19859378,0.0002,2]
[324988620,1714498027871,-241.71320654,0.0002,2]
[324988621,1714498027890,-5460.88699735,0.0002,2]
[324988622,1714498027909,-308.90365849,0.0002026,2]
[324988623,1714498027928,-392.65173522,0.00020383,2]
[324988624,1714498027947,-4140.43281637,0.00020383,2]
[324988625,1714498027966,-160.585066,0.00020484,2]
[324988626,1714498027985,-189.03839214,0.00020813,2]
[324988627,1714498028004,-200.77637646,0.00020907,2]
[324988628,1714498028025,-589.53011534,0.00020912,2]
[324988629,1714498028044,-574.45001192,0.00020912,2]
[324988630,1714498028069,-225.90709444,0.00020913,2]
[324988631,1714498028088,-159.21978257,0.00022,2]
[324988632,1714498028108,-171.419179,0.00022466,2]
[324988633,1714498028131,-166.66667,0.00022466,2]
[324988634,1714498028150,-714.17223552,0.00023,2]
[324988635,1714498028170,-620.0,0.00023408,2]
[324988636,1714498028189,-308.90365849,0.00023466,2]
[324988637,1714498028210,-784.43135358,0.000239,2]
[324988638,1714498028230,-989.91268434,0.00024,2]
[324988639,1714498028251,-693.45686249,0.00024,2]
[324988640,1714498028272,-166.666666,0.00024482,2]
[324988641,1714498028292,-620.0,0.00024578,2]
[324988642,1714498028313,-500.0,0.00024657,2]
[324988643,1714498028334,-154.78330338,0.00025,2]
[324988644,1714498028354,-154.78330338,0.00025,2]
[324988645,1714498028374,-620.0,0.00025807,2]
[324988646,1714498028394,-308.90365849,0.00026671,3]
[324988647,1714498028415,-8529.21181525,0.00027,2]
[324988648,1714498028435,-620.0,0.00027098,2]
[324988649,1714498028455,-220.93587945,0.00028,2]
[324988650,1714498028474,-624.8,0.00028034,5]
[324988651,1714498028493,-620.0,0.00028453,2]
[324988652,1714498028512,-784.43135358,0.000289,2]
[324988653,1714498028531,-417.0,0.0002896,2]
[324988654,1714498028550,-624.8,0.00029068,5]
[324988655,1714498028570,-620.0,0.00029875,2]
[324988656,1714498028589,-308.90365849,0.00029876,4]
[324988657,1714498028610,-164.66079013,0.000299,15]
[324988658,1714498028629,-3722.55253328,0.0003,4]
[324988659,1714498028649,-2502.33107,0.0003,2]
[324988660,1714498028668,-437.0,0.0003,2]
[324988661,1714498028688,-624.8,0.00030101,5]
[324988662,1714498028706,-266731.54894452,0.00031,10]
[324988682,1714498044103,-514.30635662,0.00020912,2]
[324988683,1714498044124,-272.75007926,0.00020913,2]
[324988684,1714498044146,-9378.0153671,0.00020913,2]
[324988685,1714498044166,-5460.88699735,0.00020913,2]
[324988686,1714498044185,-166.666666,0.00021918,2]
[324988687,1714498044204,-166.666666,0.00022431,2]
[324988688,1714498044224,-166.666666,0.00022944,2]
[324988689,1714498044244,-166.666666,0.00023456,2]
[324988690,1714498044263,-166.666666,0.00023969,2]
[324988691,1714498044285,-166.666666,0.00024482,2]
[324988692,1714498044305,-154.76784823,0.00025,2]
[324988693,1714498044326,-68161.98470544,0.00031,10]
[324988709,1714498053153,-603.84859883,0.00020912,2]
[324988710,1714498053177,-1312.75517414,0.00020912,2]
[324988711,1714498053198,-8996.17452703,0.00020912,2]
[324988762,1714498231998,-514.30635662,0.00020899,2]